bitfinex/quotes_BTCUSD_20220115
["timestamp","ask_amount","ask_price","bid_price","bid_amount"]
[1642250789421,0.280825,42623.0,42618.0,0.013863]
[1642250789620,0.280825,42623.0,42618.0,0.07252509]
[1642250789819,0.343738,42622.0,42618.0,0.07252509]
[1642250790064,0.374564,42621.0,42618.0,0.07252509]
[1642250790768,0.00120967,42625.0,42621.0,0.058657]
[1642250790965,0.376597,42624.0,42622.0,0.05865911]
[1642250791167,0.476597,42624.0,42622.0,0.05865911]
[1642250791665,0.376597,42624.0,42622.0,0.05865911]
[1642250792067,0.476597,42624.0,42620.0,0.11731821]
[1642250792265,0.53652126,42624.0,42620.0,0.11731821]
[1642250792466,0.47785626,42624.0,42620.0,0.11731821]
[1642250792668,0.2802971,42623.0,42620.0,0.11731821]
[1642250792868,0.278787,42622.0,42620.0,0.11731821]
[1642250793366,0.278787,42622.0,42620.0,0.10731821]
[1642250793566,0.00125926,42624.0,42620.0,0.10731821]
[1642250793822,0.32256542,42620.0,42600.0,0.24411806]
[1642250794019,0.42256542,42620.0,42600.0,0.24411806]
[1642250794220,0.32256542,42620.0,42600.0,0.24411806]
[1642250794422,0.23,42623.0,42616.0,0.11733206]
[1642250794620,0.376597,42622.0,42618.0,0.05866]
[1642250794821,0.23,42623.0,42618.0,0.05866]
[1642250795521,0.30873196,42629.0,42618.0,0.11731874]
[1642250795723,0.83878381,42630.0,42623.0,0.05864]
[1642250795921,0.83878381,42630.0,42623.0,0.18236]
[1642250796122,0.376597,42629.0,42624.0,0.45317913]
[1642250796323,0.83878381,42630.0,42624.0,0.45317913]
[1642250796523,0.83878381,42630.0,42625.0,0.117287]
[1642250796723,0.25201627,42633.0,42625.0,0.117287]
[1642250796926,0.26055321,42631.0,42626.0,0.058644]
[1642250797126,0.376597,42630.0,42626.0,0.11727987]
[1642250797323,0.26055321,42631.0,42626.0,0.11227987]
[1642250797577,0.26055321,42631.0,42626.0,0.10525773]
[1642250797777,0.27237353,42627.0,42626.0,0.10525773]
[1642250797977,0.278787,42627.0,42626.0,0.05863587]
[1642250798380,0.2800863,42627.0,42626.0,0.05863587]
[1642250798580,0.2800863,42627.0,42610.0,0.23461117]
[1642250798581,0.00126094,42623.0,42610.0,0.23461117]
[1642250798779,0.058667,42622.0,42610.0,0.22961117]
[1642250798979,0.29933719,42619.0,42610.0,0.22961117]
[1642250799182,0.00126094,42623.0,42617.0,0.11733101]
[1642250799379,0.00126094,42623.0,42617.0,0.07273101]
[1642250799581,0.28373955,42622.0,42617.0,0.07273101]
[1642250799779,0.058667,42622.0,42617.0,0.07273101]
[1642250799978,0.376597,42621.0,42617.0,0.07273101]
[1642250800179,0.31201921,42618.0,42617.0,0.07273101]
[1642250800381,0.278787,42618.0,42616.0,0.11732995]
[1642250800579,0.1,42618.0,42616.0,0.11732995]
[1642250801614,1.27129639,42622.0,42616.0,0.11732995]
[1642250801615,0.41620864,42620.0,42616.0,0.11732995]
[1642250801916,0.376597,42619.0,42617.0,0.11733448]
[1642250802120,0.476597,42619.0,42617.0,0.11733448]
[1642250802612,0.376597,42619.0,42617.0,0.11733448]
[1642250802815,0.64579899,42622.0,42617.0,0.11733448]
[1642250803015,0.64579899,42622.0,42619.0,0.058654]
[1642250803215,0.64579899,42622.0,42620.0,0.05864902]
[1642250803415,0.17661268,42622.0,42620.0,0.05864902]
[1642250803618,0.17661268,42628.0,42620.0,0.07794]
[1642250803818,0.0206978,42628.0,42622.0,0.00129406]
[1642250804015,0.0206978,42628.0,42624.0,0.22638991]
[1642250804214,0.74040467,42635.0,42624.0,0.22638991]
[1642250804215,0.85670467,42635.0,42624.0,0.22638991]
[1642250804417,0.55358607,42631.0,42623.0,0.013441]
[1642250804618,0.278787,42630.0,42623.0,0.013441]
[1642250804816,0.55358607,42631.0,42623.0,0.013441]
[1642250804817,0.55358607,42631.0,42624.0,0.376597]
[1642250805076,0.55358607,42631.0,42625.0,0.68498472]
[1642250805277,0.55358607,42631.0,42627.0,0.30513448]
[1642250805477,0.55358607,42631.0,42628.0,0.376597]
[1642250805679,0.55358607,42631.0,42628.0,0.058637]
[1642250805881,0.30718496,42637.0,42626.0,0.117274]
[1642250805882,0.376597,42630.0,42626.0,0.117274]
[1642250806078,0.82975756,42630.0,42615.0,0.30838772]
[1642250806278,0.0012856,42628.0,42614.0,0.00126279]
[1642250806478,0.278787,42627.0,42614.0,0.00126279]
[1642250806677,0.33240468,42623.0,42610.0,0.30838772]
[1642250806879,0.0012856,42628.0,42623.0,0.11730528]
[1642250807078,0.376589,42627.0,42623.0,0.11730528]
[1642250807480,0.27563008,42626.0,42623.0,0.11730528]
[1642250807678,0.272099,42625.0,42623.0,0.11730528]
[1642250807879,0.272099,42625.0,42623.0,0.23460628]
[1642250808680,0.272099,42625.0,42623.0,0.29325892]
[1642250808915,0.55358607,42627.0,42623.0,0.29325892]
[1642250809115,0.376589,42626.0,42623.0,0.29325892]
[1642250809515,0.376589,42626.0,42623.0,0.24855892]
[1642250809715,0.26969707,42625.0,42623.0,0.24855892]
[1642250810018,0.55487167,42628.0,42623.0,0.18990628]
[1642250810019,0.272099,42624.0,42623.0,0.18990628]
[1642250810217,0.55487167,42628.0,42623.0,0.11730528]
[1642250810415,0.55487167,42628.0,42625.0,0.05865]
[1642250810416,0.376589,42627.0,42625.0,0.05865]
[1642250811015,0.65888988,42627.0,42625.0,0.05865]
[1642250811215,0.65888988,42627.0,42625.0,0.11729792]
[1642250811415,0.376589,42627.0,42625.0,0.11729792]
[1642250812016,0.376059,42627.0,42625.0,0.11729792]
[1642250812217,0.272099,42626.0,42625.0,0.05864792]
[1642250812417,0.58671133,42626.0,42625.0,0.05864792]
[1642250812673,0.68671133,42626.0,42625.0,0.05864792]
[1642250812967,0.68671133,42626.0,42623.0,9.44e-06]
[1642250813165,0.37734424,42624.0,42623.0,9.44e-06]
[1642250813367,0.67227905,42624.0,42623.0,9.44e-06]
[1642250813565,0.77227905,42624.0,42623.0,9.44e-06]
[1642250814468,0.67227905,42624.0,42621.0,0.01407044]
[1642250814668,0.37734424,42624.0,42623.0,0.11730528]
[1642250814866,0.65493233,42624.0,42623.0,0.11730528]
[1642250815067,0.37734424,42624.0,42623.0,0.11730528]
[1642250815270,0.69120059,42624.0,42623.0,0.11730528]
[1642250815466,0.68992035,42624.0,42623.0,0.11730528]
[1642250815667,0.376064,42624.0,42623.0,0.11730528]
[1642250816423,0.00128132,42628.0,42623.0,0.11730528]
[1642250816624,0.25570151,42626.0,42623.0,0.11730528]
[1642250816924,0.24972602,42624.0,42623.0,0.11730528]
[1642250817124,0.62628702,42624.0,42623.0,0.11730528]
[1642250817324,0.376561,42624.0,42623.0,0.11730528]
[1642250818124,0.00128132,42628.0,42623.0,0.23460628]
[1642250818324,0.30413638,42634.0,42623.0,0.23460628]
[1642250818325,0.376561,42627.0,42623.0,0.23460628]
[1642250818526,0.376561,42627.0,42623.0,0.41054215]
[1642250818726,0.0012961,42634.0,42623.0,0.41054215]
[1642250818925,0.0012961,42634.0,42629.0,0.05864188]
[1642250819327,0.29012225,42639.0,42629.0,0.05864188]
[1642250819526,0.24581186,42634.0,42632.0,0.1172804]
[1642250819726,0.05990801,42640.0,42632.0,0.1172804]
[1642250819925,0.376561,42639.0,42632.0,0.1172804]
[1642250820468,0.64940078,42639.0,42632.0,0.1172804]
[1642250820666,0.058645,42637.0,42635.0,0.11728435]
[1642250820867,0.58286891,42636.0,42635.0,0.11728435]
[1642250822167,0.68286891,42636.0,42635.0,0.11728435]
[1642250822970,0.271602,42636.0,42635.0,0.11728435]
[1642250823368,0.271602,42636.0,42629.0,0.17592107]
[1642250823570,0.3064794,42642.0,42632.0,0.117274]
[1642250823821,0.376561,42641.0,42632.0,0.224994]
[1642250824020,0.55358607,42636.0,42632.0,0.224994]
[1642250824224,0.271602,42635.0,42634.0,0.05863622]
[1642250824623,0.4848246,42635.0,42629.0,0.13082107]
[1642250825022,0.27759836,42630.0,42629.0,0.13082107]
[1642250825221,0.65415936,42630.0,42629.0,0.13082107]
[1642250825823,1.20774543,42630.0,42629.0,0.13082107]
[1642250826628,1.20774543,42630.0,42615.0,0.175955]
[1642250826629,0.00122616,42619.0,42607.0,0.058663]
[1642250826823,0.00122616,42619.0,42613.0,0.9746]
[1642250827223,0.25131244,42619.0,42613.0,0.9746]
[1642250827424,0.73275336,42623.0,42615.0,0.05866165]
[1642250827672,0.73275336,42623.0,42615.0,0.17598665]
[1642250827673,0.376561,42622.0,42615.0,0.17598665]
[1642250827873,0.55358607,42623.0,42615.0,0.117325]
[1642250828274,0.08443224,42623.0,42616.0,0.24967253]
[1642250828473,0.08443224,42627.0,42620.0,0.00126492]
[1642250828672,0.08443224,42627.0,42623.0,0.23457659]
[1642250829071,0.3064794,42632.0,42623.0,0.23457659]
[1642250829272,0.31265987,42633.0,42623.0,0.23457659]
[1642250829470,1.09259572,42634.0,42623.0,0.058646]
[1642250829471,0.64383957,42634.0,42623.0,0.058646]
[1642250829672,0.64383957,42634.0,42628.0,0.05864391]
[1642250829873,0.64383957,42636.0,42630.0,0.05864]
[1642250830072,0.376561,42635.0,42630.0,0.05864]
[1642250831336,0.376561,42635.0,42630.0,0.23455979]
[1642250831736,0.376561,42635.0,42630.0,0.54115981]
[1642250831936,0.00123952,42637.0,42630.0,0.23455979]
[1642250832139,0.00123952,42637.0,42633.0,0.058639]
[1642250832337,0.64383957,42639.0,42634.0,0.38720581]
[1642250832536,0.376561,42638.0,42634.0,0.48059581]
[1642250832738,1.02040057,42638.0,42634.0,0.48059581]
[1642250832937,0.3409817,42636.0,42634.0,0.48059581]
[1642250833139,0.671602,42635.0,42634.0,0.15202688]
[1642250833439,0.666602,42635.0,42634.0,0.15202688]
[1642250833637,0.666602,42635.0,42634.0,0.05863688]
[1642250833837,0.4,42635.0,42634.0,0.05863688]
[1642250834239,0.776514,42635.0,42634.0,0.05863688]
[1642250834638,0.776514,42635.0,42634.0,0.01383688]
[1642250836269,1.09116103,42635.0,42634.0,0.01383688]
[1642250836468,0.769214,42635.0,42634.0,0.01383688]
[1642250837169,0.769214,42635.0,42634.0,0.00385688]
[1642250837371,0.266656,42634.0,42633.0,0.15444]
[1642250837573,0.266656,42634.0,42633.0,0.095802]
[1642250837770,0.1907891,42634.0,42633.0,0.095802]
[1642250838372,0.3927,42635.0,42633.0,0.095802]
[1642250839522,0.3927,42635.0,42633.0,0.051202]
[1642250839722,0.376519,42634.0,42633.0,0.051202]
[1642250842769,0.3927,42635.0,42633.0,0.051202]
[1642250843567,0.63935477,42635.0,42632.0,0.05648]
[1642250844268,0.376519,42634.0,42632.0,0.05648]
[1642250844472,1.84675836,42642.0,42632.0,0.05648]
[1642250844669,1.78811836,42642.0,42633.0,0.41632233]
[1642250844868,0.55611836,42642.0,42636.0,0.117268]
[1642250845069,0.55611836,42642.0,42638.0,0.00125965]
[1642250845668,0.57955382,42645.0,42639.0,0.40651086]
[1642250845869,0.57955382,42645.0,42641.0,0.058621]
[1642250846070,0.55611836,42647.0,42641.0,0.058621]
[1642250846318,0.55611836,42647.0,42644.0,0.05862021]
[1642250846722,0.55611836,42648.0,42644.0,0.05862021]
[1642250847318,0.55611836,42648.0,42646.0,0.38449865]
[1642250847517,0.55611836,42648.0,42647.0,0.00126357]
[1642250848118,0.27264354,42653.0,42647.0,0.00126357]
[1642250848319,0.55611836,42655.0,42647.0,0.36050477]
[1642250848921,0.55611836,42655.0,42650.0,0.058607]
[1642250849223,0.55611836,42655.0,42652.0,0.00126064]
[1642250849423,0.55611836,42659.0,42652.0,0.00126064]
[1642250849624,0.55611836,42659.0,42658.0,0.00123956]
[1642250849823,0.55611836,42659.0,42654.0,0.07475]
[1642250850068,0.08738136,42659.0,42658.0,0.05859778]
[1642250850468,0.08738136,42662.0,42658.0,0.43511678]
[1642250850870,0.08738136,42662.0,42658.0,0.05859778]
[1642250851067,0.08738136,42662.0,42659.0,0.058609]
[1642250851068,0.376519,42661.0,42659.0,0.058609]
[1642250851270,0.26921686,42660.0,42659.0,0.058609]
[1642250851471,0.26921686,42660.0,42640.0,0.9715]
[1642250851472,0.45999986,42660.0,42640.0,0.9715]
[1642250851668,0.42359187,42649.0,42640.0,0.9715]
[1642250851873,0.00127698,42658.0,42641.0,0.552366]
[1642250852069,0.2987354,42654.0,42647.0,0.05862284]
[1642250852868,0.26237005,42653.0,42647.0,0.05862284]
[1642250853070,0.00120499,42651.0,42644.0,0.117246]
[1642250853268,0.30721863,42645.0,42644.0,0.117246]
[1642250853468,0.30721863,42645.0,42639.0,0.11725615]
[1642250853668,0.26823102,42644.0,42636.0,0.9363]
[1642250853923,0.26823102,42644.0,42620.0,0.3016]
[1642250853924,0.02962873,42638.0,42620.0,0.3016]
[1642250854122,0.02962873,42638.0,42609.0,0.3047]
[1642250854123,0.00125929,42629.0,42621.0,0.948]
[1642250854426,0.32939014,42629.0,42622.0,1.080329]
[1642250854623,0.32813085,42629.0,42624.0,0.11729658]
[1642250854821,0.01991,42630.0,42625.0,0.331619]
[1642250855020,0.00125185,42635.0,42625.0,0.331619]
[1642250855221,0.36118917,42635.0,42624.0,0.11729658]
[1642250855422,0.35618917,42635.0,42624.0,0.11729658]
[1642250855622,0.35618917,42635.0,42626.0,0.11729518]
[1642250855821,0.28078769,42634.0,42626.0,0.058648]
[1642250856021,0.00129418,42636.0,42626.0,0.058648]
[1642250856926,0.64383957,42643.0,42630.0,0.05864625]
[1642250856927,0.96195061,42643.0,42630.0,0.05864625]
[1642250857124,0.31811104,42643.0,42637.0,0.058626]
[1642250857323,0.29870788,42644.0,42637.0,0.058626]
[1642250857566,0.64383957,42645.0,42637.0,0.058626]
[1642250857769,0.96418455,42645.0,42637.0,0.058626]
[1642250858167,0.64383957,42645.0,42638.0,0.058624]
[1642250858365,0.7153377,42650.0,42640.0,0.37902292]
[1642250858565,0.90366848,42651.0,42640.0,0.37902292]
[1642250858566,0.64383957,42651.0,42640.0,0.37902292]
[1642250858868,0.64383957,42651.0,42641.0,0.0012326]
[1642250859066,0.64383957,42651.0,42648.0,0.00124001]
[1642250859266,0.00609198,42660.0,42648.0,0.05984501]
[1642250859267,0.55727735,42655.0,42648.0,0.05984501]
[1642250859866,0.55727735,42655.0,42648.0,0.01504501]
[1642250860168,0.31943565,42658.0,42648.0,0.01504501]
[1642250860367,0.56570606,42658.0,42649.0,0.058605]
[1642250860569,0.56570606,42658.0,42649.0,0.11720997]
[1642250860769,0.56570606,42658.0,42652.0,0.058605]
[1642250861067,0.65276403,42657.0,42652.0,0.058605]
[1642250861729,0.65276403,42657.0,42654.0,0.05860427]
[1642250861930,0.376541,42657.0,42655.0,0.058612]
[1642250862133,0.24627041,42658.0,42655.0,0.058612]
[1642250862333,0.24627041,42658.0,42655.0,0.055612]
[1642250862829,0.376541,42657.0,42655.0,0.055612]
[1642250863030,0.56336933,42660.0,42655.0,0.055612]
[1642250863232,0.56336933,42660.0,42657.0,0.05860118]
[1642250863431,0.376541,42659.0,42657.0,0.05860118]
[1642250863632,0.376541,42659.0,42655.0,0.055612]
[1642250863633,0.29287218,42656.0,42655.0,0.055612]
[1642250863832,0.52853018,42656.0,42645.0,0.915]
[1642250864032,0.60857129,42656.0,42649.0,0.058619]
[1642250864235,0.376541,42655.0,42649.0,0.058619]
[1642250864432,0.60857129,42656.0,42649.0,0.058619]
[1642250864635,0.35338483,42653.0,42649.0,0.058619]
[1642250864832,0.35338483,42653.0,42650.0,0.07252522]
[1642250866071,0.31569911,42656.0,42652.0,0.058605]
[1642250866270,0.31569911,42656.0,42652.0,0.17581769]
[1642250866472,0.55727735,42657.0,42652.0,0.17581769]
[1642250866673,0.56336933,42660.0,42652.0,0.17581769]
[1642250866875,0.35045935,42656.0,42652.0,0.11721269]
[1642250867674,0.35045935,42656.0,42654.0,0.117212]
[1642250867874,0.26498031,42659.0,42654.0,0.117212]
[1642250868074,0.30688436,42657.0,42654.0,0.117212]
[1642250869021,0.30688436,42657.0,42655.0,0.376541]
[1642250869221,0.27223049,42660.0,42655.0,0.376541]
[1642250869222,0.00609198,42660.0,42658.0,0.05860279]
[1642250869422,0.00609198,42660.0,42658.0,0.17580879]
[1642250869824,0.00609198,42660.0,42658.0,0.13120879]
[1642250870223,0.33517268,42660.0,42658.0,0.13120879]
[1642250870423,0.00609198,42660.0,42658.0,0.13120879]
[1642250871725,0.00609198,42660.0,42659.0,0.376541]
[1642250871925,0.00609198,42660.0,42658.0,0.18980479]
[1642250872127,0.00609198,42660.0,42659.0,0.376541]
[1642250872968,0.00609198,42660.0,42658.0,0.30698026]
[1642250873168,0.33829774,42659.0,42658.0,0.30698026]
[1642250873371,0.33829774,42659.0,42656.0,0.17581351]
[1642250873572,0.376541,42658.0,42654.0,0.058615]
[1642250873968,0.376541,42658.0,42651.0,0.117226]
[1642250874168,0.27858594,42656.0,42651.0,0.117226]
[1642250874369,0.3395922,42659.0,42651.0,0.117226]
[1642250874370,0.00129446,42659.0,42651.0,0.117226]
[1642250874770,0.00129446,42659.0,42651.0,0.072526]
[1642250875372,0.26823977,42660.0,42651.0,0.13114252]
[1642250875570,0.00609198,42660.0,42654.0,0.11719783]
[1642250876518,0.29485501,42659.0,42654.0,0.11719783]
[1642250876718,0.41641476,42658.0,42655.0,0.11719792]
[1642250876918,0.376541,42657.0,42655.0,0.058599]
[1642250877218,0.376541,42657.0,42654.0,0.23439583]
[1642250877521,0.29485501,42659.0,42654.0,0.23439583]
[1642250877522,0.376541,42656.0,42654.0,0.23439583]
[1642250877721,0.30853653,42655.0,42654.0,0.23439583]
[1642250879920,0.30853653,42655.0,42654.0,0.18949583]
[1642250880174,0.00609198,42660.0,42654.0,0.18949583]
[1642250880372,0.00609198,42660.0,42656.0,0.0586]
[1642250880974,0.00609198,42660.0,42656.0,0.051325]
[1642250881176,0.29359991,42659.0,42656.0,0.051325]
[1642250881374,0.376541,42658.0,42657.0,0.1171963]
[1642250881573,0.33515511,42660.0,42658.0,0.117199]
[1642250881574,0.00609198,42660.0,42658.0,0.117199]
[1642250882374,0.63928494,42660.0,42658.0,0.17579715]
[1642250882573,0.376541,42659.0,42658.0,0.17579715]
[1642250884219,0.30748474,42660.0,42658.0,0.17579715]
[1642250885023,0.30748474,42660.0,42658.0,0.13089715]
[1642250885222,0.30748474,42660.0,42656.0,0.051325]
[1642250885223,0.63949632,42659.0,42656.0,0.051325]
[1642250885425,0.63949632,42659.0,42651.0,0.117227]
[1642250885426,0.235658,42657.0,42651.0,0.117227]
[1642250885821,0.235658,42657.0,42651.0,0.17584401]
[1642250886022,0.32318774,42654.0,42651.0,0.17584401]
[1642250886222,0.39742836,42652.0,42651.0,0.117227]
[1642250886722,0.69589098,42652.0,42651.0,0.117227]
[1642250886925,0.32318774,42654.0,42651.0,0.117227]
[1642250887323,0.32318774,42654.0,42651.0,0.17584172]
[1642250887582,0.29256341,42659.0,42651.0,0.05861472]
[1642250887787,0.29256341,42659.0,42654.0,0.058616]
[1642250887986,0.30784146,42656.0,42654.0,0.058616]
[1642250888183,0.376541,42655.0,42654.0,0.058616]
[1642250888683,0.376541,42655.0,42651.0,0.05861556]
[1642250888883,0.376541,42655.0,42651.0,0.058619]
[1642250889484,0.376541,42655.0,42651.0,0.11723601]
[1642250889485,0.63293257,42655.0,42651.0,0.11723601]
[1642250889886,0.23694713,42652.0,42636.0,0.009378]
[1642250890086,0.00129193,42647.0,42636.0,0.009378]
[1642250890487,0.00129193,42647.0,42640.0,0.058632]
[1642250890686,0.30259643,42644.0,42640.0,0.058632]
[1642250890886,0.53687881,42643.0,42640.0,0.058632]
[1642250891088,0.30259643,42644.0,42640.0,0.11726389]
[1642250891319,0.00129193,42647.0,42640.0,0.058632]
[1642250891520,0.32286654,42654.0,42640.0,0.058632]
[1642250891725,0.00125345,42651.0,42640.0,0.058632]
[1642250891921,0.36678805,42646.0,42640.0,0.058632]
[1642250892121,0.27257285,42645.0,42641.0,0.117254]
[1642250892520,0.376541,42644.0,42641.0,0.117254]
[1642250892722,0.376541,42644.0,42641.0,0.23450359]
[1642250893127,0.00121296,42643.0,42637.0,0.11726098]
[1642250893525,0.00121296,42643.0,42636.0,0.009378]
[1642250893726,0.00121296,42643.0,42636.0,0.12664342]
[1642250894125,0.68979824,42639.0,42636.0,0.12664342]
[1642250894327,0.235658,42637.0,42636.0,0.009378]
[1642250894927,0.235658,42637.0,42629.0,0.081965]
[1642250895172,0.00125383,42632.0,42629.0,0.081965]
[1642250895372,0.32888743,42632.0,42629.0,0.081965]
[1642250895570,0.57664956,42632.0,42629.0,0.081965]
[1642250895971,0.33059927,42630.0,42629.0,0.081965]
[1642250896173,0.57664956,42632.0,42629.0,0.081965]
[1642250896372,0.57539573,42632.0,42629.0,0.081965]
[1642250896572,0.57539573,42632.0,42630.0,0.05864307]
[1642250896972,0.57539573,42632.0,42626.0,0.117293]
[1642250897171,0.50800522,42631.0,42626.0,0.117293]
[1642250897372,0.5140999,42631.0,42626.0,0.117293]
[1642250897771,0.24985699,42631.0,42627.0,0.05864982]
[1642250897973,0.24985699,42631.0,42628.0,0.058648]
[1642250898174,0.25668103,42630.0,42628.0,0.058648]
[1642250898376,0.24985699,42631.0,42628.0,0.058648]
[1642250898920,0.00609468,42631.0,42628.0,0.058648]
[1642250900021,0.00609468,42631.0,42628.0,0.013948]
[1642250900221,0.23,42632.0,42629.0,0.376541]
[1642250900423,0.23,42632.0,42621.0,0.175929]
[1642250900424,0.28869086,42631.0,42623.0,0.1173]
[1642250900622,0.00122724,42625.0,42616.0,0.001]
[1642250901222,0.00122724,42625.0,42619.0,0.05866053]
[1642250901423,0.29138584,42622.0,42621.0,0.058659]
[1642250901822,0.66792684,42622.0,42619.0,0.05866053]
[1642250902023,0.22763659,42621.0,42619.0,0.05866053]
[1642250902223,0.43351482,42623.0,42619.0,0.05866053]
[1642250902423,0.31698045,42624.0,42619.0,0.05866053]
[1642250903070,0.2576875,42623.0,42621.0,0.058657]
[1642250903370,0.2,42623.0,42621.0,0.11731325]
[1642250903574,0.31698045,42624.0,42621.0,0.058657]
[1642250903770,0.376599,42623.0,42618.0,0.117314]
[1642250903971,0.376599,42623.0,42616.0,0.001]
[1642250903972,0.26346068,42623.0,42616.0,0.001]
[1642250904173,0.0012715,42619.0,42616.0,0.001]
[1642250904377,0.22757,42615.0,42610.0,0.0032]
[1642250904673,1.8947027,42614.0,42610.0,0.0032]
[1642250904871,0.376599,42614.0,42610.0,0.0032]
[1642250905071,0.376599,42614.0,42605.0,0.90296159]
[1642250905072,0.00126259,42607.0,42605.0,0.88274559]
[1642250905273,1.07757,42606.0,42605.0,0.88274559]
[1642250905471,1.45259755,42606.0,42605.0,0.88274559]
[1642250905970,1.45259755,42606.0,42602.0,0.001]
[1642250905971,0.59958599,42604.0,42602.0,0.001]
[1642250906174,0.376599,42603.0,42602.0,0.001]
[1642250906626,0.37502755,42606.0,42602.0,0.001]
[1642250906826,0.37502755,42606.0,42603.0,0.058683]
[1642250907026,0.00126259,42607.0,42603.0,0.058683]
[1642250907628,0.23,42606.0,42603.0,0.058683]
[1642250907828,0.376599,42605.0,42603.0,0.058683]
[1642250908428,0.23,42606.0,42603.0,0.058683]
[1642250909728,0.376599,42605.0,42603.0,0.058683]
[1642250909928,0.23,42606.0,42603.0,0.058683]
[1642250910192,0.23,42606.0,42605.0,0.00237934]
[1642250910396,1.506599,42606.0,42605.0,0.00237934]
[1642250910592,0.606599,42606.0,42605.0,0.00237934]
[1642250911792,0.94045766,42606.0,42605.0,0.00237934]
[1642250912395,2.19045766,42606.0,42605.0,0.00237934]
[1642250912792,1.856599,42606.0,42605.0,0.00237934]
[1642250912992,0.606599,42606.0,42605.0,0.00237934]
[1642250913592,0.23,42606.0,42605.0,0.00237934]
[1642250914321,0.68,42606.0,42605.0,0.00237934]
[1642250914724,1.056599,42606.0,42605.0,0.00237934]
[1642250914920,0.606599,42606.0,42605.0,0.00237934]
[1642250915123,0.606599,42606.0,42605.0,0.00207934]
[1642250915422,0.23,42606.0,42605.0,0.00207934]
[1642250915620,0.00125539,42617.0,42605.0,0.37867834]
[1642250915822,0.376599,42616.0,42610.0,0.058663]
[1642250916023,0.31493035,42613.0,42610.0,0.058663]
[1642250916320,0.4481804,42611.0,42609.0,0.11732551]
[1642250916524,0.4481804,42611.0,42605.0,0.00207934]
[1642250916525,0.376599,42610.0,42605.0,0.00207934]
[1642250916724,0.376599,42610.0,42609.0,0.05867402]
[1642250917123,0.376599,42610.0,42606.0,0.058677]
[1642250917322,0.32149922,42607.0,42605.0,0.00207934]
[1642250917577,1.32757,42606.0,42605.0,0.00207934]
[1642250918377,2.3095292,42606.0,42605.0,0.00207934]
[1642250918780,1.6095292,42606.0,42605.0,0.00207934]
[1642250918977,1.32757,42606.0,42605.0,0.00207934]
[1642250919579,0.22757,42606.0,42605.0,0.00207934]
[1642250919778,0.23,42610.0,42605.0,0.00207934]
[1642250919978,0.23,42610.0,42606.0,0.11733581]
[1642250920178,0.23,42610.0,42606.0,0.07243581]
[1642250920378,0.23,42610.0,42607.0,0.05866791]
[1642250920778,0.376599,42609.0,42607.0,0.05866791]
[1642250920978,0.23,42610.0,42607.0,0.05866791]
[1642250921418,0.23,42610.0,42607.0,0.11733991]
[1642250923317,0.376599,42609.0,42607.0,0.11733991]
[1642250923916,0.23,42610.0,42607.0,0.11733991]
[1642250924316,0.23,42610.0,42607.0,0.05866791]
[1642250924720,0.376599,42609.0,42607.0,0.05866791]
[1642250925180,0.376599,42609.0,42607.0,0.01396791]
[1642250925583,0.69858879,42609.0,42607.0,0.01396791]
[1642250925781,0.24870874,42608.0,42607.0,0.01396791]
[1642250925984,0.22757,42608.0,42604.0,0.17601475]
[1642250926282,0.26685137,42606.0,42604.0,0.17601475]
[1642250926582,0.60741823,42606.0,42604.0,0.17601475]
[1642250926882,0.26132595,42605.0,42602.0,0.11735363]
[1642250927083,0.26132595,42605.0,42601.0,0.0021]
[1642250927284,0.376599,42604.0,42601.0,0.0021]
[1642250927484,0.37203896,42604.0,42601.0,0.0021]
[1642250929827,0.34056686,42606.0,42601.0,0.06078346]
[1642250930226,0.34056686,42606.0,42601.0,0.01598346]
[1642250932126,0.32866686,42606.0,42601.0,0.01598346]
[1642250933572,0.32866686,42606.0,42603.0,0.058678]
[1642250933872,0.32866686,42606.0,42604.0,0.05867565]
[1642250934172,0.32866686,42606.0,42603.0,0.058678]
[1642250934572,0.23,42610.0,42603.0,0.058678]
[1642250935172,0.23,42610.0,42603.0,0.013978]
[1642250935372,0.23,42610.0,42606.0,0.05867512]
[1642250935573,0.23,42610.0,42607.0,0.058674]
[1642250935574,0.3767,42609.0,42607.0,0.058674]
[1642250937530,0.23,42610.0,42607.0,0.058674]
[1642250938129,0.2773195,42621.0,42613.0,0.058651]
[1642250938328,0.55727735,42623.0,42613.0,0.058651]
[1642250938329,0.83459685,42623.0,42613.0,0.058651]
[1642250938528,0.33280336,42622.0,42613.0,0.146801]
[1642250938729,0.33280336,42622.0,42615.0,0.117297]
[1642250938929,0.83459685,42623.0,42615.0,0.117297]
[1642250939131,0.2773195,42623.0,42615.0,0.117297]
[1642250939330,0.00609572,42625.0,42618.0,0.058652]
[1642250939729,0.2773195,42628.0,42618.0,0.058652]
[1642250939930,0.80227321,42629.0,42618.0,0.082472]
[1642250940371,0.45248214,42627.0,42618.0,0.082472]
[1642250940573,0.45248214,42627.0,42621.0,0.058642]
[1642250940771,0.45248214,42627.0,42623.0,0.058644]
[1642250941573,0.45248214,42627.0,42623.0,0.234578]
[1642250941771,0.29533293,42625.0,42623.0,0.234578]
[1642250942472,0.29520498,42625.0,42623.0,0.234578]
[1642250942673,0.45248214,42627.0,42623.0,0.234578]
[1642250942871,0.45248214,42627.0,42623.0,0.29322]
[1642250943272,2.82425939,42634.0,42623.0,0.29322]
[1642250943472,2.81925939,42634.0,42628.0,0.05864298]
[1642250943673,0.30294792,42631.0,42623.0,0.058644]
[1642250943922,0.30294792,42631.0,42626.0,0.11728307]
[1642250944122,0.30294792,42631.0,42628.0,0.058642]
[1642250944323,0.3767,42630.0,42628.0,0.058642]
[1642250944522,0.3767,42630.0,42628.0,0.11728504]
[1642250945125,0.00126877,42635.0,42628.0,0.01404304]
[1642250945326,0.3767,42634.0,42630.0,0.058636]
[1642250945523,0.3767,42634.0,42630.0,0.17591044]
[1642250945923,0.55727735,42639.0,42632.0,0.05863842]
[1642250946124,0.55727735,42639.0,42631.0,0.06875]
[1642250946524,0.55727735,42639.0,42634.0,0.20838005]
[1642250946723,0.55727735,42639.0,42634.0,0.20960087]
[1642250947689,0.40513868,42640.0,42637.0,0.058626]
[1642250948092,0.40513868,42640.0,42637.0,0.17587621]
[1642250948288,0.23,42639.0,42637.0,0.17587621]
[1642250948689,0.3767,42638.0,42636.0,0.117252]
[1642250948989,0.3767,42638.0,42633.0,0.058637]
[1642250949190,0.23,42639.0,42633.0,0.17589962]
[1642250949390,0.14513868,42640.0,42633.0,0.11726262]
[1642250950090,0.14513868,42640.0,42636.0,0.058628]